[Event "EICC 2025"]
[Site "Eforie-Nord"]
[Date "2025.03.15"]
[Round "1.22"]
[White "Gales, Randi-Ioan"]
[Black "Gavrilescu, David"]
[Result "1/2-1/2"]
[Annotator "ChessBase"]
[ECO "E51"]
[WhiteElo "2215"]
[BlackElo "2549"]
[PlyCount "96"]
[EventDate "2025.03.14"]
[EventType "swiss"]
[EventCountry "ROU"]
[SourceTitle "playchess.com"]
[Source "ChessBase"]
[SourceQuality "1"]
[TimeControl "40/5400+30:1800+30"]

1. d4 {[%emt 0:00:08]} Nf6 {[%emt 0:00:38]} 2. c4 {[%emt 0:00:08]} e6 {[%emt 0:00:32]} 3. Nc3 {[%emt 0:00:19]} Bb4 {[%emt 0:00:36]} 4. e3 {[%emt 0:01:04]} O-O {[%emt 0:00:39]} 5. Bd2 {[%emt 0:00:35]} d5 {[%emt 0:00:45]} 6. Nf3 {[%emt 0:00:10]} b6 {[%emt 0:00:40]} 7. cxd5 {[%emt 0:00:20]} exd5 {[%emt 0:00:12]} 8. Bd3 {[%emt 0:00:36]} c5 {[%emt 0:00:47]} 9. h3 {[%emt 0:11:32]} Nc6 {[%emt 0:06:46]} 10. a3 {[%emt 0:04:57]} Bxc3 {[%emt 0:08:40]} 11. Bxc3 {[%emt 0:00:28]} c4 {[%emt 0:01:45]} 12. Bc2 {[%emt 0:00:38]} Ne4 {[%emt 0:17:51]} 13. Bxe4 {[%emt 0:02:08]} dxe4 {[%emt 0:00:34]} 14. Ne5 {[%emt 0:01:48]} Nxe5 {[%emt 0:10:04]} 15. dxe5 {[%emt 0:00:02]} Qg5 {[%emt 0:00:19]} 16. Qc2 {[%emt 0:26:33]} Qxg2 {[%emt 0:17:08]} 17. O-O-O {[%emt 0:00:43]} Be6 {[%emt 0:00:11]} 18. Rhg1 {[%emt 0:03:07]} Qf3 {[%emt 0:03:54]} 19. Rg3 {[%emt 0:02:28]} Qh5 {[%emt 0:01:42]} 20. Qxe4 {[%emt 0:11:16]} Rfd8 {[%emt 0:06:52]} 21. Rdg1 {[%emt 0:08:59]} g6 {[%emt 0:00:37]} 22. Rg5 {[%emt 0:01:42]} Qe2 {[%emt 0:02:03]} 23. f4 {[%emt 0:03:36]} Rac8 {[%emt 0:03:26]} 24. f5 {[%emt 0:02:59]} Bd5 {[%emt 0:02:14]} 25. Qf4 {[%emt 0:07:56]} Bf3 {[%emt 0:00:47]} 26. Bd4 {[%emt 0:00:06]} c3 {[%emt 0:03:16]} 27. bxc3 {[%emt 0:00:12]} Qd3 {[%emt 0:02:12]} 28. fxg6 {[%emt 0:02:19]} fxg6 {[%emt 0:02:10]} 29. e6 {[%emt 0:00:41]} Rxc3+ {[%emt 0:01:22]} 30. Bxc3 {[%emt 0:00:05]} Qxc3+ {[%emt 0:00:05]} 31. Kb1 {[%emt 0:00:02]} Qd3+ {[%emt 0:00:47]} 32. Ka1 {[%emt 0:01:33]} Qc3+ {[%emt 0:00:08]} 33. Kb1 {[%emt 0:00:08]} Qb3+ {[%emt 0:00:07]} 34. Ka1 {[%emt 0:00:08]} Qc3+ {[%emt 0:00:05]} 35. Kb1 {[%emt 0:00:04]} Qb3+ {[%emt 0:00:03]} 36. Ka1 {[%emt 0:00:06]} Qxa3+ {[%emt 0:00:04]} 37. Kb1 {[%emt 0:00:06]} Qb3+ {[%emt 0:00:31]} 38. Ka1 {[%emt 0:00:05]} Qc3+ {[%emt 0:02:11]} 39. Kb1 {[%emt 0:00:06]} Qd3+ {[%emt 0:01:50]} 40. Kb2 {[%emt 0:00:00]} Qd2+ {[%emt 0:00:00]} 41. Kb1 {[%emt 0:06:53]} Qd3+ {[%emt 0:00:39]} 42. Kb2 {[%emt 0:00:07]} Qe2+ {[%emt 0:02:00]} 43. Kb1 {[%emt 0:00:31]} Rd1+ {[%emt 0:01:39]} 44. Rxd1 {[%emt 0:00:06]} Qxd1+ {[%emt 0:00:03]} 45. Kb2 {[%emt 0:00:21]} Qd2+ {[%emt 0:00:04]} 46. Kb1 {[%emt 0:00:17]} Qd1+ {[%emt 0:00:04]} 47. Kb2 {[%emt 0:00:04]} Qd2+ {[%emt 0:00:04]} 48. Kb1 {[%emt 0:00:03]} Qd1+ {[%emt 0:00:04]} 1/2-1/2

[Event "EICC 2025"]
[Site "Eforie-Nord"]
[Date "2025.03.15"]
[Round "1.23"]
[White "Petkov, Momchil"]
[Black "Lehaci, Miruna-Daria"]
[Result "1-0"]
[Annotator "ChessBase"]
[ECO "B29"]
[WhiteElo "2547"]
[BlackElo "2212"]
[PlyCount "81"]
[EventDate "2025.03.14"]
[EventType "swiss"]
[EventCountry "ROU"]
[SourceTitle "playchess.com"]
[Source "ChessBase"]
[SourceQuality "1"]
[TimeControl "40/5400+30:1800+30"]

1. e4 {[%emt 1:31:00]} c5 {[%emt 1:31:00]} 2. Nf3 {[%emt 0:00:30]} Nf6 {[%emt 0:00:30]} 3. e5 {[%emt 0:00:30]} Nd5 {[%emt 0:00:30]} 4. Nc3 {[%emt 0:00:30]} e6 {[%emt 0:00:30]} 5. Ne4 {[%emt 0:00:30]} f5 {[%emt 0:00:30]} 6. Nc3 {[%emt 0:00:30]} Nb4 {[%emt 0:00:30]} 7. a3 {[%emt 0:00:30]} N4c6 {[%emt 0:00:30]} 8. b4 {[%emt 0:00:30]} d5 {[%emt 0:00:30]} 9. exd6 {[%emt 0:00:30]} Bxd6 {[%emt 0:00:30]} 10. Bc4 {[%emt 0:00:30]} Nd4 {[%emt 0:00:30]} 11. Nb5 {[%emt 0:00:30]} Be7 {[%emt 0:00:30]} 12. Nbxd4 {[%emt 0:00:30]} cxd4 {[%emt 0:00:30]} 13. O-O {[%emt 0:00:30]} Qd6 {[%emt 0:00:30]} 14. Re1 {[%emt 0:00:30]} Bf6 {[%emt 0:00:30]} 15. Ng5 {[%emt 0:00:30]} Bxg5 {[%emt 0:00:30]} 16. Qh5+ {[%emt 0:00:30]} g6 {[%emt 0:00:30]} 17. Qxg5 {[%emt 0:00:30]} Kf7 {[%emt 0:00:30]} 18. d3 {[%emt 0:00:30]} Nc6 {[%emt 0:00:30]} 19. b5 {[%emt 0:00:30]} Na5 {[%emt 0:00:30]} 20. Ba2 {[%emt 0:00:30]} h6 {[%emt 0:00:30]} 21. Qh4 {[%emt 0:00:30]} Qd8 {[%emt 0:00:30]} 22. Qf4 {[%emt 0:00:30]} a6 {[%emt 0:00:30]} 23. Bb2 {[%emt 0:00:30]} axb5 {[%emt 0:00:30]} 24. Bxd4 {[%emt 0:00:30]} Rh7 {[%emt 0:00:30]} 25. Qe5 {[%emt 0:00:30]} Ra6 {[%emt 0:00:30]} 26. Rab1 {[%emt 0:00:30]} Qe7 {[%emt 0:00:30]} 27. Bc5 {[%emt 0:00:30]} Qd7 {[%emt 0:00:30]} 28. Qf4 {[%emt 0:00:30]} Kg8 {[%emt 0:00:30]} 29. Re5 {[%emt 0:00:30]} Qc7 {[%emt 0:00:30]} 30. Rbe1 {[%emt 0:00:30]} Kh8 {[%emt 0:00:30]} 31. Qd4 {[%emt 0:00:30]} Rg7 {[%emt 0:00:30]} 32. Qh4 {[%emt 0:00:30]} Kh7 {[%emt 0:00:30]} 33. Bf8 {[%emt 0:00:30]} g5 {[%emt 0:00:30]} 34. Qh3 {[%emt 0:00:30]} Rg6 {[%emt 0:00:30]} 35. Rxb5 {[%emt 0:00:30]} Qxc2 {[%emt 0:00:30]} 36. Rc5 {[%emt 0:00:30]} Qd2 {[%emt 0:00:30]} 37. Rc7+ {[%emt 0:00:30]} Kg8 {[%emt 0:00:30]} 38. Bb4 {[%emt 0:00:30]} Qxa2 {[%emt 0:00:30]} 39. Rxc8+ {[%emt 0:00:30]} Kh7 {[%emt 0:00:30]} 40. Bc3 {[%emt 0:00:30]} Rg7 {[%emt 0:00:30]} 41. Rh8+ {[%emt 0:30:30]} 1-0

[Event "EICC 2025"]
[Site "Eforie-Nord"]
[Date "2025.03.15"]
[Round "1.23"]
[White "Smolik, Jachym"]
[Black "Chigaev, Maksim"]
[Result "0-1"]
[Annotator "TA"]
[ECO "A16"]
[WhiteElo "2308"]
[BlackElo "2629"]
[PlyCount "85"]
[EventDate "2025.03.14"]
[EventType "swiss"]
[EventCountry "ROU"]
[SourceTitle "playchess.com"]
[Source "ChessBase"]
[SourceQuality "1"]
[TimeControl "40/5400+30:1800+30"]

{[%evp 9,85,5,9,20,22,17,16,10,26,9,46,28,36,29,61,34,58,25,35,25,43,17,19,20,34,33,60,39,60,36,50,43,67,56,45,40,44,-5,-12,-22,-17,-33,-41,-38,-18,-22,-27,-30,-22,-27,-26,-33,-26,-28,-25,-36,0,0,0,-16,-24,-14,0,-40,-37,-226,-167,-177,-164,-182,-183,-727,-391,-935,-970,-945,-500,-479]} 1. Nf3 {[%emt 0:00:03]} Nf6 {[%emt 0:00:49]} 2. c4 {[%emt 0:00:07]} g6 {[%emt 0:00:43]} 3. Nc3 {[%emt 0:00:21]} Bg7 {[%emt 0:00:14]} 4. g3 {[%emt 0:00:09]} b6 {[%emt 0:02:00]} 5. Bg2 {[%emt 0:01:12]} Bb7 {[%emt 0:00:08]} 6. d4 {[%emt 0:03:02] A16: English Opening: 1...Nf6 with ...d5.} Ne4 {[%emt 0:02:00]} 7. Nxe4 {[%emt 0:08:47]} Bxe4 {[%emt 0:00:09]} 8. Be3 {[%emt 0:05:33] The position is equal.} d6 {[%emt 0:05:28]} 9. Qd2 {[%emt 0:09:33]} h6 $146 {[%emt 0:00:22]} (9... Nd7 10. Bh6 Bxh6 11. Qxh6 e6 12. O-O Qe7 13. Rac1 a5 14. Rc3 Rd8 15. Re1 Bxf3 16. exf3 {½-½ Agdestein,S (2588)-Tiviakov,S (2686) Remco Heite Wolvega 2008 (1)}) 10. O-O {[%emt 0:09:36]} e6 {[%emt 0:05:41]} 11. Rac1 {[%emt 0:04:15]} Nd7 {[%emt 0:04:34]} 12. Rfd1 {[%emt 0:07:50]} Nf6 {[%emt 0:08:27]} 13. h3 {[%emt 0:02:37]} a5 {[%emt 0:01:50]} 14. b3 {[%emt 0:02:50]} Qb8 {[%emt 0:16:44]} 15. a3 {[%emt 0:14:19]} Qb7 {[%emt 0:03:49]} 16. Bf1 {[%emt 0:03:40]} Rd8 {[%emt 0:04:16]} 17. Ne1 {[%emt 0:00:59]} Qc8 {[%emt 0:03:32]} 18. f3 {[%emt 0:02:35]} Bb7 {[%emt 0:00:08]} 19. b4 {[%emt 0:01:53]} axb4 {[%emt 0:02:00]} 20. axb4 {[%emt 0:00:01]} Qb8 {[%emt 0:03:05]} 21. Bf2 {[%emt 0:03:29]} O-O {[%emt 0:02:43][%cal Oc7c5]} 22. b5 {[%emt 0:01:48]} e5 {[%emt 0:04:38]} 23. dxe5 {[%emt 0:06:21]} (23. d5 $14) 23... dxe5 $11 {[%emt 0:00:09]} 24. Qc2 {[%emt 0:00:31]} e4 {[%emt 0:04:00]} 25. c5 {[%emt 0:04:24]} Rxd1 {[%emt 0:00:46]} 26. Rxd1 {[%emt 0:00:23]} bxc5 {[%emt 0:05:28]} 27. Qxc5 {[%emt 0:00:11]} Re8 {[%emt 0:00:53]} 28. g4 {[%emt 0:01:22]} Qa8 {[%emt 0:08:10]} 29. Qxc7 {[%emt 0:03:28]} Nd5 {[%emt 0:00:06]} ({But not} 29... exf3 30. exf3 Nd5 31. Qc4 $11) 30. Qc5 {[%emt 0:01:34]} e3 {[%emt 0:02:41]} 31. Bg3 {[%emt 0:00:01]} Rc8 {[%emt 0:02:18]} 32. Qd6 {[%emt 0:00:15]} Nc3 {[%emt 0:03:05]} 33. Rd3 {[%emt 0:01:02]} Nxb5 {[%emt 0:00:36]} 34. Qe7 {[%emt 0:02:00]} Re8 $36 {[%emt 0:01:06][%mdl 2048] White is under pressure.} 35. Qb4 {[%emt 0:01:07]} Ba6 {[%emt 0:01:05]} 36. Kh2 {[%emt 0:00:37]} Qc8 {[%emt 0:00:39] and ...Nc3 should not be overlooked} 37. Qa5 {[%emt 0:00:32] [#] White does not recover from this.} (37. Rd5 $15 Qb7 38. Rd3) 37... Nd4 {[%emt 0:01:06]} 38. Ra3 {[%emt 0:00:30]} Bxe2 {[%emt 0:00:12]} 39. Bxe2 {[%emt 0:00:31]} Nxe2 {[%emt 0:00:02]} 40. Bd6 {[%emt 0:00:30]} (40. Qc7) 40... Nd4 {[%emt 0:00:30]} 41. Qd5 $2 {[%emt 0:02:33] [#]} (41. Qa4 Kh7 42. Ra2) 41... Qc1 $19 {[%emt 0:00:56]} 42. Ra7 {[%emt 0:03:46]} Qd2+ {[%emt 0:00:39]} ({And not} 42... Qxe1 43. Qxf7+ Kh8 44. Qxg7#) 43. Ng2 {[%emt 0:00:06] Weighted Error Value: White=0.52/Black=0.35  Loses game:     	White=1     	---        Mistake:       	White=3     	---        Inaccurate:     	White=4     	Black=5      OK:         	White=10    	Black=16     Best:        	White=2     	---} 0-1

[Event "EICC 2025"]
[Site "Eforie-Nord"]
[Date "2025.03.15"]
[Round "1.24"]
[White "Ponomariov, Ruslan"]
[Black "Suleymanli, Suleyman"]
[Result "1-0"]
[Annotator "TA"]
[ECO "C11"]
[WhiteElo "2628"]
[BlackElo "2305"]
[PlyCount "71"]
[EventDate "2025.03.14"]
[EventType "swiss"]
[EventCountry "ROU"]
[SourceTitle "playchess.com"]
[Source "ChessBase"]
[SourceQuality "1"]
[TimeControl "40/5400+30:1800+30"]

{[%evp 16,71,14,-14,-6,-11,-13,-1,7,-3,17,18,44,45,52,46,53,45,74,63,116,123,177,144,254,247,180,170,443,415,476,454,502,462,479,477,685,681,833,825,954,915,1227,1045,1696,1679,3039,3196,29970,29965,5243,5243,29990,29991,29997,29998,29998,29999]} 1. e4 {[%emt 0:00:03][%cal Be2e4,Be4e5][%mdl 32]} e6 {[%emt 0:00:06]} 2. d4 {[%emt 0:00:07]} d5 {[%emt 0:00:07]} 3. Nc3 {[%emt 0:00:10]} Nf6 {[%emt 0:00:16]} 4. e5 {[%emt 0:00:12]} Nfd7 {[%emt 0:00:07]} 5. f4 {[%emt 0:00:17]} c5 {[%emt 0:00:07]} 6. Nf3 {[%emt 0:00:11]} Nc6 {[%emt 0:00:06]} 7. Be3 {[%emt 0:00:19]} a6 {[%emt 0:02:51]} 8. Qd2 {[%emt 0:03:56]} b5 {[%emt 0:01:22]} 9. h4 {[%emt 0:00:27]} cxd4 {[%emt 0:05:20] C11: French: Classical System: 4 e5 and 4 Bg5 dxe4.} 10. Nxd4 {[%emt 0:01:16]} Nxd4 {[%emt 0:00:04]} 11. Bxd4 {[%emt 0:00:10]} Bc5 {[%emt 0:14:48] The position is equal.} 12. h5 {[%emt 0:08:41]} h6 $146 {[%emt 0:05:54]} (12... Qb6 13. O-O-O O-O 14. Bxc5 Nxc5 15. f5 Qc7 16. Re1 exf5 17. h6 g6 18. Nxd5 Qd8 {1-0 Nakamura,H (2701)-Akobian,V (2612) USA-ch Saint Louis 2009 (7)}) 13. O-O-O {[%emt 0:21:37][%cal Oc3e4]} Qa5 {[%emt 0:05:55]} 14. Kb1 {[%emt 0:04:07]} Bxd4 {[%emt 0:03:23]} 15. Qxd4 {[%emt 0:00:42]} b4 {[%emt 0:00:05]} 16. Ne2 {[%emt 0:00:24][%cal Bc3e2,Be2d4,Bd4e6][%mdl 32]} Qc5 {[%emt 0:19:11]} 17. Qd2 {[%emt 0:01:47]} a5 {[%emt 0:00:49] [#]} ({Black should try} 17... Qb6 $14) 18. Nd4 $1 $16 {[%emt 0:00:40]} O-O {[%emt 0:03:39]} (18... Rb8 $16 19. g4 a4) 19. g4 $18 {[%emt 0:07:41]} a4 {[%emt 0:07:32] [#]} (19... Qe7 $16 20. Rg1 Kh8) 20. g5 $1 {[%emt 0:05:50]} hxg5 {[%emt 0:01:42]} 21. Rg1 {[%emt 0:02:55]} f6 {[%emt 0:10:01] [#]} (21... b3 {keeps fighting.}) 22. Bd3 $1 {[%emt 0:04:12]} a3 {[%emt 0:04:31]} (22... Qb6 23. exf6) 23. Nxe6 {[%emt 0:03:07]} Qa7 {[%emt 0:00:49][%cal Oa3b2] and ...axb2! would now be decisive} 24. Nxf8 {[%emt 0:02:37]} (24. fxg5 axb2 $15) ({Weaker is} 24. Qxb4 Re8 $18) 24... Nxf8 {[%emt 0:04:32]} 25. b3 {[%emt 0:01:31]} (25. fxg5 $2 {is the wrong capture.} axb2 $19) (25. Qxb4 Rb8 26. Bb5 Bd7 $18) 25... f5 {[%emt 0:01:20]} (25... Qe7 $142 26. fxg5 Qxe5) 26. Rxg5 {[%emt 0:07:11][%cal Bg1g5,Bg5f5,Bf5f6][%mdl 32]} Ne6 {[%emt 0:01:45]} 27. Rxf5 {[%emt 0:08:00]} Qd4 {[%emt 0:03:53]} 28. Qc1 {[%emt 0:00:29]} Qc3 {[%emt 0:00:48] [#]} 29. h6 $1 {[%emt 0:00:49]} Ra7 {[%emt 0:00:39]} (29... Bd7 30. hxg7) 30. Rg1 {[%emt 0:01:19]} Qd4 {[%emt 0:02:08]} 31. Rf6 {[%emt 0:02:31] And now Bf5 would win.} Kh8 {[%emt 0:00:23]} 32. hxg7+ {[%emt 0:01:49]} Rxg7 {[%emt 0:00:08]} 33. Bg6 {[%emt 0:01:42] Intending f5 and mate.} Bd7 {[%emt 0:01:58]} 34. f5 {[%emt 0:01:20] White mates.} Nf4 {[%emt 0:00:32]} 35. Rf8+ {[%emt 0:00:17]} Rg8 {[%emt 0:00:02]} 36. Rh1+ {[%emt 0:00:10] Black did not feel at home in the position after the opening.   Weighted Error Value: White=0.04 (flawless) /Black=1.79  Mistake:       	---       	Black=5      Inaccurate:     	---       	Black=2      OK:         	White=8     	Black=1      Best:        	White=2     	---        Strong:       	White=2     	---} 1-0

[Event "EICC 2025"]
[Site "Eforie-Nord"]
[Date "2025.03.15"]
[Round "1.24"]
[White "Demirtas, Alper"]
[Black "Dragnev, Valentin"]
[Result "1/2-1/2"]
[Annotator "ChessBase"]
[ECO "E06"]
[WhiteElo "2207"]
[BlackElo "2545"]
[PlyCount "59"]
[EventDate "2025.03.14"]
[EventType "swiss"]
[EventCountry "ROU"]
[SourceTitle "playchess.com"]
[Source "ChessBase"]
[SourceQuality "1"]
[TimeControl "40/5400+30:1800+30"]

1. Nf3 {[%emt 0:00:30]} d5 {[%emt 0:00:11]} 2. d4 {[%emt 0:00:00]} Nf6 {[%emt 0:00:21]} 3. c4 {[%emt 0:00:00]} e6 {[%emt 0:00:22]} 4. g3 {[%emt 0:00:03]} c6 {[%emt 0:01:01]} 5. Bg2 {[%emt 0:01:01]} Be7 {[%emt 0:00:19]} 6. O-O {[%emt 0:00:24]} O-O {[%emt 0:00:12]} 7. Qc2 {[%emt 0:01:30]} b6 {[%emt 0:00:22]} 8. Ne5 {[%emt 0:05:27]} Nfd7 {[%emt 0:05:54]} 9. Nd3 {[%emt 0:04:35]} Nf6 {[%emt 0:13:28]} 10. b3 {[%emt 0:07:35]} Bb7 {[%emt 0:03:25]} 11. Ba3 {[%emt 0:06:25]} Nbd7 {[%emt 0:02:13]} 12. Bxe7 Qxe7 {[%emt 0:00:03]} 13. Nd2 {[%emt 0:12:15]} Rfd8 {[%emt 0:04:07]} 14. Rfd1 {[%emt 0:03:48]} Rac8 {[%emt 0:01:46]} 15. Qb2 {[%emt 0:02:12]} c5 {[%emt 0:01:52]} 16. Qa3 {[%emt 0:04:34]} Rc7 {[%emt 0:06:35]} 17. Rac1 {[%emt 0:04:49]} h5 {[%emt 0:04:10]} 18. e3 {[%emt 0:05:36]} h4 {[%emt 0:04:51]} 19. dxc5 {[%emt 0:05:52]} bxc5 {[%emt 0:01:40]} 20. Qa5 {[%emt 0:01:28]} Rdc8 {[%emt 0:04:02]} 21. cxd5 {[%emt 0:04:42]} exd5 {[%emt 0:01:11]} 22. Nf3 {[%emt 0:09:01]} h3 {[%emt 0:23:51]} 23. Bh1 {[%emt 0:08:47]} Ng4 {[%emt 0:08:38]} 24. Nf4 {[%emt 0:02:53]} Qf6 {[%emt 0:01:49]} 25. Qc3 {[%emt 0:06:14]} d4 {[%emt 0:03:49]} 26. exd4 {[%emt 0:03:49]} g5 {[%emt 0:07:18]} 27. Nxh3 {[%emt 0:00:30]} cxd4 {[%emt 0:00:00]} 28. Qd2 {[%emt 0:00:00]} Rxc1 {[%emt 0:00:04]} 29. Rxc1 {[%emt 0:00:00]} Rxc1+ {[%emt 0:00:11]} 30. Qxc1 {[%emt 0:00:00]} 1/2-1/2

[Event "EICC 2025"]
[Site "Eforie-Nord"]
[Date "2025.03.15"]
[Round "1.25"]
[White "Sokolovsky, Yahli"]
[Black "Yalcinkaya, Efe"]
[Result "1-0"]
[Annotator "ChessBase"]
[ECO "B11"]
[WhiteElo "2545"]
[BlackElo "2207"]
[PlyCount "85"]
[EventDate "2025.03.14"]
[EventType "swiss"]
[EventCountry "ROU"]
[SourceTitle "playchess.com"]
[Source "ChessBase"]
[SourceQuality "1"]
[TimeControl "40/5400+30:1800+30"]

1. e4 {[%emt 0:00:03]} c6 {[%emt 0:00:04]} 2. Nc3 {[%emt 0:00:15]} d5 {[%emt 0:00:05]} 3. Nf3 {[%emt 0:00:05]} dxe4 {[%emt 0:00:03]} 4. Nxe4 {[%emt 0:00:06]} Nf6 {[%emt 0:00:14]} 5. Qe2 {[%emt 0:00:12]} Nxe4 {[%emt 0:00:04]} 6. Qxe4 {[%emt 0:00:06]} Be6 {[%emt 0:00:03]} 7. b3 {[%emt 0:00:51]} Nd7 {[%emt 0:00:10]} 8. Bb2 {[%emt 0:00:05]} Nf6 {[%emt 0:00:03]} 9. Qe5 {[%emt 0:03:09]} Bg4 {[%emt 0:01:16]} 10. Qg3 {[%emt 0:07:06]} Bxf3 {[%emt 0:01:59]} 11. Qxf3 {[%emt 0:00:26]} e6 {[%emt 0:00:56]} 12. O-O-O {[%emt 0:05:26]} Qa5 {[%emt 0:00:49]} 13. Kb1 {[%emt 0:02:03]} O-O-O {[%emt 0:01:14]} 14. Bd3 {[%emt 0:14:44]} Be7 {[%emt 0:00:21]} 15. Rhe1 {[%emt 0:01:20]} Rd7 {[%emt 0:01:03]} 16. Re5 {[%emt 0:02:29]} Rd5 {[%emt 0:02:28]} 17. Qg3 {[%emt 0:13:58]} Rxe5 {[%emt 0:11:05]} 18. Qxe5 {[%emt 0:01:47]} Qxe5 {[%emt 0:00:39]} 19. Bxe5 {[%emt 0:00:02]} Ng4 {[%emt 0:03:46]} 20. Bg3 {[%emt 0:11:39]} h5 {[%emt 0:00:50]} 21. h4 {[%emt 0:02:02]} Kd7 {[%emt 0:01:50]} 22. f3 {[%emt 0:00:21]} Nf6 {[%emt 0:00:51]} 23. Bf2 {[%emt 0:04:10]} a6 {[%emt 0:06:40]} 24. c3 {[%emt 0:00:07]} Rg8 {[%emt 0:03:57]} 25. Kc2 {[%emt 0:02:59]} Nd5 {[%emt 0:01:15]} 26. g3 {[%emt 0:01:51]} f5 {[%emt 0:01:35]} 27. Rg1 {[%emt 0:04:12]} g5 {[%emt 0:15:47]} 28. hxg5 {[%emt 0:00:05]} Rxg5 {[%emt 0:00:11]} 29. f4 {[%emt 0:00:44]} Rg6 {[%emt 0:00:43]} 30. Be2 {[%emt 0:04:36]} h4 {[%emt 0:01:25]} 31. c4 {[%emt 0:00:06]} Nb4+ {[%emt 0:10:38]} 32. Kb2 {[%emt 0:09:40]} c5 {[%emt 0:11:08]} 33. gxh4 {[%emt 0:00:43]} Rxg1 34. Bxg1 {[%emt 0:00:01]} Nc6 {[%emt 0:07:33]} 35. Bf3 {[%emt 0:01:06]} b6 {[%emt 0:05:14]} 36. Bxc6+ {[%emt 0:02:11]} Kxc6 {[%emt 0:00:06]} 37. h5 {[%emt 0:00:14]} Bf6+ {[%emt 0:00:56]} 38. Kc2 {[%emt 0:00:01]} e5 {[%emt 0:02:01]} 39. fxe5 {[%emt 0:00:06]} Bxe5 {[%emt 0:00:01]} 40. h6 {[%emt 0:03:13]} a5 {[%emt 0:03:43]} 41. h7 {[%emt 0:33:44]} Kd7 {[%emt 0:32:29]} 42. d4 {[%emt 0:00:59]} cxd4 {[%emt 0:00:34]} 43. Kd3 {[%emt 0:00:06]} 1-0

[Event "EICC 2025"]
[Site "Eforie-Nord"]
[Date "2025.03.15"]
[Round "1.25"]
[White "Kochavi, Dana"]
[Black "Sargissian, Gabriel"]
[Result "0-1"]
[Annotator "TA"]
[ECO "B11"]
[WhiteElo "2301"]
[BlackElo "2628"]
[PlyCount "88"]
[EventDate "2025.03.14"]
[EventType "swiss"]
[EventCountry "ROU"]
[SourceTitle "playchess.com"]
[Source "ChessBase"]
[SourceQuality "1"]
[TimeControl "40/5400+30:1800+30"]

{[%evp 9,88,43,44,56,54,55,60,13,13,18,21,21,17,5,2,-25,-8,-23,-6,-26,-14,-130,-127,-205,-177,-211,-212,-218,-205,-230,-208,-273,-286,-311,-328,-315,-310,-295,-284,-337,-347,-335,-337,-348,-335,-374,-387,-391,-384,-402,-411,-430,-417,-443,-406,-455,-397,-436,-384,-443,-409,-489,-512,-651,-586,-977,-952,-5119,-771,-5285,-2040,-1577,-1377,-916,-1112,-1050,-1050,-1560,-1389,-5627,-5614]} 1. e4 {[%emt 0:00:02]} c6 {[%emt 0:00:25]} 2. Nc3 {[%emt 0:00:04]} d5 {[%emt 0:00:52]} 3. Nf3 {[%emt 0:00:05]} Bg4 {[%emt 0:00:57]} 4. d4 {[%emt 0:00:08]} e6 {[%emt 0:01:28]} 5. Be2 {[%emt 0:00:05]} Nd7 {[%emt 0:02:02]} 6. O-O {[%emt 0:00:25] B11: Caro-Kann: Two Knights Variation.} dxe4 {[%emt 0:03:17]} 7. Nxe4 {[%emt 0:00:08]} Ngf6 {[%emt 0:00:16]} 8. Ng3 {[%emt 0:02:52]} (8. h3 $14 {feels stronger.} Bh5 9. Nxf6+ Nxf6 10. c3) 8... Bd6 $11 {[%emt 0:13:29]} 9. h3 {[%emt 0:16:26]} Bxf3 {[%emt 0:03:16]} 10. Bxf3 {[%emt 0:00:07]} Qc7 {[%emt 0:00:56]} 11. Ne2 {[%emt 0:05:39]} O-O {[%emt 0:04:04]} 12. b3 $146 {[%emt 0:09:30]} ({Predecessor:} 12. c4 e5 13. Nc3 exd4 14. Qxd4 Be5 15. Qh4 Rfe8 16. Be3 Bxc3 17. bxc3 Ne5 18. Be2 {½-½ Kosteniuk,A (2516)-Bilan,D (2303) Titled Tuesday intern op 14th Dec blitz 2021 (3)}) 12... Rad8 {[%emt 0:10:01][%cal Od7e5]} 13. g3 {[%emt 0:17:42]} e5 {[%emt 0:04:02]} 14. Bb2 {[%emt 0:01:31]} Rfe8 {[%emt 0:03:31]} 15. c4 {[%emt 0:11:34] Black converts the advantage convincingly.} (15. Qc1 $11) 15... exd4 $17 {[%emt 0:02:25]} 16. Nxd4 {[%emt 0:01:04] [#]} (16. Bxd4 $17 {is a better defense.} Ne5 17. Bg2) 16... Ne5 $1 $19 {[%emt 0:06:34]} 17. Qe2 {[%emt 0:04:34]} Nxf3+ {[%emt 0:08:32]} 18. Qxf3 {[%emt 0:00:05] [#]} Be5 $1 {[%emt 0:00:13]} 19. Rad1 {[%emt 0:09:44]} Qb6 {[%emt 0:00:44][%cal Re5d4]} 20. c5 {[%emt 0:00:54]} Qxc5 {[%emt 0:01:06]} 21. Ne6 {[%emt 0:07:16]} fxe6 {[%emt 0:01:29]} (21... Rxe6 $2 {is the wrong capture.} 22. Rxd8+ Ne8 23. Bxe5 Qxe5 24. Rfd1 $18) 22. b4 {[%emt 0:00:05]} Qb5 {[%emt 0:07:49]} (22... Qxb4 23. Bxe5 Qe4 24. Qc3 $17) 23. a4 {[%emt 0:00:10] [#]} Qxf1+ {[%emt 0:00:32]} 24. Rxf1 {[%emt 0:00:40]} (24. Kxf1 Rxd1+) 24... Bxb2 {[%emt 0:00:05]} 25. b5 {[%emt 0:00:55]} Nd5 {[%emt 0:02:45]} 26. bxc6 {[%emt 0:02:41]} bxc6 {[%emt 0:01:05]} 27. Qe2 {[%emt 0:01:43]} Bd4 {[%emt 0:00:39]} 28. Re1 {[%emt 0:00:41]} Re7 {[%emt 0:01:48]} 29. Kh1 {[%emt 0:01:41]} c5 {[%emt 0:01:31]} 30. Rc1 {[%emt 0:04:36]} Rb8 {[%emt 0:00:50]} 31. Rc2 {[%emt 0:00:51]} g6 {[%emt 0:01:30]} 32. h4 {[%emt 0:02:32]} Nf6 {[%emt 0:00:54]} 33. Kg2 {[%emt 0:00:00]} Kg7 {[%emt 0:00:29]} 34. a5 {[%emt 0:00:00]} e5 {[%emt 0:01:22]} 35. a6 {[%emt 0:00:52]} e4 {[%emt 0:00:25] Black is clearly winning.} 36. Qd1 {[%emt 0:00:36]} e3 {[%emt 0:00:59]} 37. fxe3 {[%emt 0:00:20]} Rxe3 {[%emt 0:02:29] White must now prevent ...Rbb3.} 38. Kh3 {[%emt 0:00:34]} Ne4 {[%emt 0:00:31]} 39. Rg2 {[%emt 0:00:31] [#]} Rxg3+ $1 {[%emt 0:00:59]} 40. Kh2 {[%emt 0:00:04]} (40. Rxg3 Nf2+) 40... Rxg2+ {[%emt 0:09:40]} 41. Kxg2 {[%emt 0:30:07]} Rb2+ {[%emt 0:30:21]} 42. Kf3 {[%emt 0:00:07]} Nc3 {[%emt 0:00:36]} 43. Qe1 {[%emt 0:00:26]} Re2 {[%emt 0:01:28]} 44. Qg3 {[%emt 0:00:22]} Re3+ {[%emt 0:00:28] Weighted Error Value: White=1.06/Black=0.43  Mistake:       	White=3     	---        Inaccurate:     	White=4     	---        OK:         	White=5     	Black=21     Best:        	White=2     	Black=1      Strong:       	---       	Black=2      Brilliant:      	---       	Black=1} 0-1